bitfinex/quotes_SOLUSD_20251116
["timestamp","ask_amount","ask_price","bid_price","bid_amount"]
[1763286875091,6.5357034,143.07,143.02,6.5357034]
[1763286875288,7.2457034,143.07,143.02,6.5357034]
[1763286875593,7.2457034,143.06,143.01,16.78]
[1763286875973,7.2457034,143.05,143.01,16.78]
[1763286876170,14.23643809,143.05,143.01,16.78]
[1763286876480,0.71,143.04,143.01,16.78]
[1763286876884,0.71,143.04,143.01,23.3157034]
[1763286877089,6.5357034,143.06,143.01,23.3157034]
[1763286877278,0.71,143.05,143.01,30.30812268]
[1763286877477,0.71,143.05,143.02,6.5357034]
[1763286877794,0.71,143.05,143.01,23.3157034]
[1763286878198,0.71,143.05,143.01,30.30805903]
[1763286878370,0.71,143.05,143.01,23.3157034]
[1763286878572,0.71,143.05,143.02,6.5357034]
[1763286878787,0.71,143.05,143.01,23.3157034]
[1763286878998,0.71,143.05,143.01,16.78]
[1763286879239,0.71,143.08,143.02,7.2557034]
[1763286879375,7.2457034,143.08,143.03,6.5357034]
[1763286879699,0.71,143.08,143.04,6.5357034]
[1763286879887,0.71,143.07,143.03,0.72]
[1763286880087,0.71,143.09,143.05,6.5357034]
[1763286880486,0.71,143.09,143.05,13.52625477]
[1763286880808,121.66785925,143.12,143.05,13.52625477]
[1763286880809,7.69771175,143.11,143.07,6.5357034]
[1763286881014,0.71,143.1,143.06,6.5357034]
[1763286882309,7.69821167,143.1,143.06,6.5357034]
[1763286882506,6.5357034,143.08,143.01,39.4312]
[1763286882713,6.5357034,143.08,143.02,6.5357034]
[1763286883007,0.71,143.07,143.02,6.5357034]
[1763286883505,0.71,143.07,143.02,7.2157034]
[1763286884310,6.99007409,143.06,143.02,7.2157034]
[1763286884614,0.71,143.07,143.03,6.5357034]
[1763286884817,6.98913043,143.08,143.04,6.5357034]
[1763286885113,0.72,143.08,143.03,0.68]
[1763286885296,0.72,143.08,143.04,6.5357034]
[1763286885705,7.70770455,143.11,143.06,6.5357034]
[1763286885903,7.70770455,143.11,143.02,47.12314669]
[1763286885904,6.5357034,143.08,143.02,23.3312]
[1763286886216,6.98958551,143.07,143.03,6.5357034]
[1763286886390,7.70958551,143.07,143.02,7.2157034]
[1763286886724,0.72,143.06,143.02,7.2157034]
[1763286887512,6.98958551,143.07,143.02,7.2157034]
[1763286887722,7.70958551,143.07,143.02,6.5357034]
[1763286887889,7.70958551,143.07,143.02,7.2157034]
[1763286888297,7.70958551,143.07,143.02,0.68]
[1763286888493,0.72,143.06,143.01,45.9669034]
[1763286888690,7.2557034,143.06,143.01,16.78]
[1763286889120,7.2557034,143.05,143.01,16.78]
[1763286889325,7.2557034,143.05,143.0,6.6357034]
[1763286889617,0.72,143.04,143.0,7.3157034]
[1763286889928,0.72,143.04,143.0,0.78]
[1763286890099,0.72,143.04,143.01,6.5357034]
[1763286891416,0.72,143.04,143.0,0.78]
[1763286891741,7.71111377,143.04,143.0,7.3157034]
[1763286893514,6.99056274,143.05,143.01,7.2157034]
[1763286893913,7.71056274,143.05,143.01,7.2157034]
[1763286894114,0.72,143.04,143.01,6.5357034]
[1763286894511,0.72,143.04,143.0,0.1]
[1763286894714,0.72,143.04,143.01,6.5357034]
[1763286895124,0.72,143.04,143.0,6.6357034]
[1763286895620,0.72,143.04,143.0,0.1]
[1763286895824,0.72,143.04,143.0,6.6357034]
[1763286896227,9.78882769,143.01,143.0,0.1]
[1763286896521,22.6512,143.03,143.0,0.1]
[1763286896522,0.72,143.02,143.0,0.1]
[1763286897825,7.71231036,143.02,143.0,0.1]
[1763286899606,7.71150324,143.04,143.0,0.1]
[1763286899806,7.2557034,143.03,143.0,0.1]
[1763286900331,0.72,143.02,143.0,0.1]
[1763286901126,7.2557034,143.06,143.01,6.5357034]
[1763286901423,14.2461342,143.06,143.02,6.5357034]
[1763286901625,0.72,143.05,143.02,6.5357034]
[1763286901829,0.72,143.05,143.01,7.2157034]
[1763286902017,7.2557034,143.05,143.0,6.6357034]
[1763286902209,7.2557034,143.05,143.0,7.3157034]
[1763286902528,0.72,143.04,143.0,7.3157034]
[1763286903115,6.5357034,143.05,143.01,0.68]
[1763286903318,7.2557034,143.05,143.01,0.68]
[1763286903532,6.99105145,143.04,143.01,0.68]
[1763286903733,14.24640688,143.05,143.01,7.2157034]
[1763286903909,104.2,143.09,143.02,7.2157034]
[1763286903910,13.52533748,143.07,143.02,7.2157034]
[1763286904111,13.52533748,143.07,143.02,0.68]
[1763286904313,6.98963408,143.07,143.04,6.5357034]
[1763286904513,14.2449381,143.08,143.04,6.5357034]
[1763286904713,14.2449381,143.08,143.04,7.2157034]
[1763286905034,121.67222853,143.09,143.05,7.2157034]
[1763286905035,6.98876784,143.09,143.05,7.2157034]
[1763286905241,6.5357034,143.12,143.08,6.5357034]
[1763286905427,14.24363942,143.11,143.06,6.5357034]
[1763286905630,25.16304769,143.19,143.1,6.5357034]
[1763286905812,6.5357034,143.17,143.13,6.5357034]
[1763286906015,0.72,143.18,143.11,6.5357034]
[1763286906228,6.5357034,143.16,143.11,6.5357034]
[1763286906752,0.72,143.16,143.11,7.2157034]
[1763286906939,0.72,143.15,143.11,7.2157034]
[1763286908415,17.46145534,143.18,143.13,6.5357034]
[1763286908416,6.5357034,143.18,143.13,6.5357034]
[1763286908620,7.2557034,143.18,143.14,6.5357034]
[1763286908837,40.09563254,143.28,143.15,6.5357034]
[1763286909141,16.32453109,143.2,143.09,0.68]
[1763286909347,9.78882769,143.18,143.11,6.5357034]
[1763286909530,6.5357034,143.17,143.12,6.5357034]
[1763286909715,6.5357034,143.16,143.12,6.5357034]
[1763286910139,6.98567935,143.15,143.12,6.5357034]
[1763286910341,6.98567935,143.15,143.11,7.2157034]
[1763286910550,7.2557034,143.14,143.07,0.68]
[1763286910752,6.5357034,143.12,143.07,6.5357034]
[1763286911053,6.5357034,143.13,143.09,6.5357034]
[1763286911421,24.44987774,143.15,143.09,0.68]
[1763286911649,7.2557034,143.14,143.09,7.2157034]
[1763286911830,14.24214231,143.14,143.1,0.68]
[1763286912030,6.98579447,143.15,143.11,6.5357034]
[1763286912228,0.72,143.17,143.11,6.5357034]
[1763286912445,7.2557034,143.17,143.12,7.2157034]
[1763286912650,6.5357034,143.16,143.12,0.68]
[1763286912827,7.2557034,143.16,143.12,0.68]
[1763286914036,14.24097992,143.16,143.12,0.68]
[1763286914728,7.70527652,143.16,143.12,7.2157034]
[1763286915152,0.7,143.18,143.13,7.2457034]
[1763286915455,0.7,143.18,143.15,6.5357034]
[1763286915642,0.7,143.18,143.13,0.71]
[1763286915643,0.7,143.18,143.13,6.5357034]
[1763286915848,7.2357034,143.18,143.14,6.5357034]
[1763286916049,14.22007957,143.18,143.14,7.2457034]
[1763286916247,7.68437617,143.18,143.14,7.2457034]
[1763286916629,7.68435398,143.18,143.14,7.2457034]
[1763286916829,7.2357034,143.18,143.14,7.2457034]
[1763286917256,14.2201752,143.18,143.14,7.2457034]
[1763286917642,7.2357034,143.17,143.12,6.5357034]
[1763286917953,6.98519139,143.16,143.12,7.2457034]
[1763286918162,14.22089479,143.16,143.12,0.71]
[1763286918967,14.22089479,143.16,143.12,7.2457034]
[1763286919355,7.2357034,143.15,143.11,6.5357034]
[1763286919552,7.2357034,143.15,143.11,7.2457034]
[1763286919553,0.7,143.15,143.11,7.2457034]
[1763286919861,6.5357034,143.12,143.06,0.71]
[1763286920034,6.5357034,143.12,143.07,7.2457034]
[1763286920234,13.52333529,143.11,143.07,7.2457034]
[1763286920471,6.5357034,143.1,143.04,0.71]
[1763286920645,6.5357034,143.09,143.04,7.2457034]
[1763286920836,6.5357034,143.08,143.03,6.5357034]
[1763286921043,7.2357034,143.08,143.04,0.71]
[1763286922060,24.45671161,143.11,143.04,0.71]
[1763286922363,6.5357034,143.09,143.04,14.2367547]
[1763286922866,24.70478312,143.11,143.06,6.5357034]
[1763286923357,24.70478312,143.11,143.06,7.2457034]
[1763286923576,7.2357034,143.1,143.05,6.5357034]
[1763286923861,7.2357034,143.1,143.05,7.2457034]
[1763286924363,7.2357034,143.1,143.06,0.71]
[1763286924665,14.22398494,143.1,143.06,0.71]
[1763286924852,7.2357034,143.09,143.03,22.6512]
[1763286925062,7.2357034,143.09,143.04,7.2457034]
[1763286925569,7.2357034,143.09,143.05,0.71]
[1763286925975,13.52398494,143.1,143.05,7.2457034]
[1763286926266,14.22398494,143.1,143.05,7.2457034]
[1763286926450,13.52398494,143.1,143.06,0.71]
[1763286926837,14.22398494,143.1,143.06,0.71]
[1763286927046,7.2357034,143.09,143.04,7.2457034]
[1763286927474,7.2357034,143.09,143.05,0.71]
[1763286927686,7.2357034,143.08,143.03,22.6512]
[1763286927971,6.5357034,143.04,143.0,0.1]
[1763286928280,6.5357034,143.03,143.0,0.1]
[1763286928579,7.2357034,143.05,143.0,7.3457034]
[1763286928782,6.5357034,143.04,143.0,0.1]
[1763286928967,7.2357034,143.04,143.0,0.1]
[1763286929143,7.2357034,143.04,143.0,0.81]
[1763286930292,0.7,143.04,143.0,14.33840643]
[1763286930443,0.7,143.04,143.0,7.3457034]
[1763286930645,7.69109276,143.04,143.0,7.3457034]
[1763286930952,11.80486407,143.04,143.0,0.1]
[1763286931169,4.11377131,143.03,143.0,0.1]
[1763286931371,4.81377131,143.03,143.0,0.1]
[1763286931583,0.7,143.02,143.0,0.1]
[1763286931884,4.11377131,143.01,143.0,0.1]
[1763286932378,4.81377131,143.01,143.0,0.1]
[1763286932676,11.80628931,143.01,143.0,0.1]
[1763286933850,4.11377131,143.01,143.0,0.1]
[1763286934367,4.81377131,143.01,143.0,0.1]
[1763286934548,7.692518,143.01,143.0,0.1]
[1763286934881,0.7,143.04,143.0,0.81]
[1763286935175,4.81377131,143.03,143.0,0.1]
[1763286935770,4.11377131,143.02,143.0,0.1]
[1763286936356,4.81377131,143.03,143.0,0.1]
[1763286936583,4.11377131,143.01,143.0,0.1]
[1763286936796,11.10628931,143.01,143.0,0.1]
[1763286937079,11.80628931,143.01,143.0,0.1]
[1763286937280,7.692518,143.01,143.0,0.1]
[1763286938353,6.992518,143.01,143.0,0.1]
[1763286939584,11.80628931,143.01,143.0,0.1]
[1763286942272,21.595117,143.01,143.0,0.1]
[1763286942472,7.692518,143.01,143.0,0.1]
[1763286942681,11.80628931,143.01,143.0,0.1]
[1763286943194,21.595117,143.01,143.0,0.1]
[1763286946289,25.70888831,143.01,143.0,0.1]
[1763286946481,25.70888831,143.01,143.0,1e-08]
[1763286947980,6.99213822,143.02,143.0,1e-08]
[1763286948186,4.82377131,143.03,143.0,1e-08]
[1763286948402,11.10482276,143.04,143.0,4.81377132]
[1763286948595,6.99105145,143.04,143.01,0.7]
[1763286949174,22.6512,143.09,143.01,0.7]
[1763286949379,4.82377131,143.06,143.01,4.81377131]
[1763286949594,4.11377131,143.05,143.01,4.81377131]
[1763286949779,0.71,143.06,143.01,4.11377131]
[1763286949984,6.99056274,143.05,143.02,4.81377131]
[1763286950591,11.81433405,143.05,143.0,4.81377132]
[1763286950786,11.81433405,143.05,143.01,0.7]
[1763286951102,4.11377131,143.06,143.01,11.80628931]
[1763286951602,4.82377131,143.07,143.02,4.81377131]
[1763286951902,11.81396005,143.06,143.02,0.7]
[1763286952098,11.81396005,143.06,143.02,4.81377131]
[1763286952292,7.70018874,143.06,143.02,4.81377131]
[1763286953406,6.99018874,143.06,143.03,0.7]
[1763286953804,29.28914528,143.06,143.02,0.7]
[1763286954219,29.28914528,143.06,143.02,4.81377131]
[1763286954505,29.28914528,143.06,143.02,0.7]
[1763286954716,7.70018874,143.06,143.02,4.81377131]
[1763286955084,29.28914528,143.06,143.02,0.7]
[1763286956299,29.28914528,143.06,143.02,4.81377131]
[1763286956604,11.81396005,143.06,143.02,4.81377131]
[1763286956803,29.28914528,143.06,143.02,4.81377131]
[1763286958411,0.71,143.1,143.05,4.11377131]
[1763286958718,0.71,143.09,143.06,4.81377131]
[1763286958887,0.71,143.09,143.05,4.11377131]
[1763286959285,0.71,143.09,143.05,4.81377131]
[1763286960100,9.78882769,143.11,143.02,24.47204154]
[1763286960423,4.82377131,143.12,143.08,4.11377131]
[1763286960587,4.82377131,143.12,143.07,4.11377131]
[1763286960783,0.71,143.12,143.08,4.11377131]
[1763286960988,0.71,143.12,143.09,0.7]
[1763286961390,13.902599,143.14,143.09,4.81377131]
[1763286961597,0.71,143.13,143.09,11.10223955]
[1763286962306,0.71,143.13,143.08,11.80273104]
[1763286962621,4.11377131,143.11,143.06,4.11377131]
[1763286962802,9.78882769,143.12,143.07,4.11377131]
[1763286962803,13.902599,143.12,143.07,4.11377131]
[1763286962994,0.71,143.11,143.07,4.11377131]
[1763286963517,0.71,143.11,143.08,6.989097]
[1763286963885,0.71,143.11,143.07,6.98952591]
[1763286964889,0.71,143.11,143.07,8.68047732]
[1763286965406,104.2,143.14,143.08,2.39095141]
[1763286965585,0.71,143.13,143.1,1.69095141]
[1763286966899,104.2,143.14,143.12,1.69095141]
[1763286967095,0.71,143.16,143.13,1.69095141]
[1763286967514,0.71,143.16,143.12,8.67809506]
[1763286968391,9.78882769,143.15,143.09,0.7]
[1763286968594,9.78882769,143.15,143.1,1.69095141]
[1763286968809,0.71,143.15,143.12,1.69095141]
[1763286969095,0.71,143.17,143.14,1.69095141]
[1763286969620,0.71,143.17,143.13,8.67760689]
[1763286970008,0.71,143.17,143.13,9.37760689]
[1763286971125,0.71,143.17,143.14,1.69095141]
[1763286971627,9.78882769,143.19,143.14,1.69095141]
[1763286971628,9.78882769,143.19,143.16,6.98519139]
[1763286971828,0.71,143.18,143.16,6.98519139]
[1763286972606,0.71,143.18,143.15,6.98555414]
[1763286973518,0.71,143.18,143.14,8.67700422]
[1763286974137,0.71,143.18,143.14,6.98605281]
[1763286976003,0.71,143.18,143.15,2.41095141]
[1763286976203,104.92,143.2,143.17,1.69095141]
[1763286976607,9.78882769,143.24,143.18,0.72]
[1763286976800,0.72,143.22,143.17,1.69095141]
[1763286977006,0.72,143.22,143.18,2.41095141]
[1763286977226,0.72,143.22,143.18,1.69095141]
[1763286977839,0.72,143.22,143.16,0.72]
[1763286977840,7.70238583,143.22,143.17,8.6756549]
[1763286978212,7.70238583,143.22,143.13,23.3712]
[1763286978213,1.69095141,143.2,143.13,23.3712]
[1763286978415,1.69095141,143.2,143.15,1.69095141]
[1763286978617,0.72,143.19,143.15,1.69095141]
[1763286979527,11.4797791,143.21,143.16,2.41095141]
[1763286979737,0.72,143.19,143.16,2.41095141]
[1763286979945,0.72,143.19,143.16,9.39598541]
[1763286980244,0.72,143.2,143.17,1.69095141]
[1763286980445,0.72,143.2,143.16,2.41095141]
[1763286981542,0.72,143.2,143.16,9.39611886]
[1763286981909,6.98290313,143.21,143.17,2.41095141]
[1763286982117,6.98234461,143.22,143.18,1.69095141]
[1763286982336,2.41095141,143.21,143.16,7.70516745]
[1763286982530,2.41095141,143.21,143.16,9.39611886]
[1763286982848,0.72,143.2,143.16,9.39611886]
[1763286983045,0.72,143.2,143.16,8.67611886]
[1763286983252,0.72,143.2,143.17,2.41095141]
[1763286983414,9.78882769,143.24,143.18,1.69095141]
[1763286983609,2.41095141,143.22,143.18,1.69095141]
[1763286983829,2.41095141,143.22,143.17,2.41095141]
[1763286984032,2.41095141,143.21,143.16,1.69095141]
[1763286984354,2.41095141,143.21,143.16,2.41095141]
[1763286984512,2.41095141,143.2,143.15,1.69095141]
[1763286985012,2.41095141,143.19,143.14,1.69095141]
[1763286985207,1.69095141,143.18,143.13,1.69095141]
[1763286985428,6.98470349,143.17,143.13,1.69095141]
[1763286985641,17.45919001,143.2,143.16,1.69095141]
[1763286985642,2.41095141,143.2,143.16,1.69095141]
[1763286985844,0.72,143.2,143.17,1.69095141]
[1763286986055,8.67416468,143.21,143.18,1.69095141]
[1763286986056,0.72,143.21,143.18,1.69095141]
[1763286986557,1.69095141,143.23,143.18,2.41095141]
[1763286986855,0.72,143.22,143.18,2.41095141]
[1763286987365,0.72,143.24,143.2,1.69095141]
[1763286987527,7.70155792,143.24,143.2,1.69095141]
[1763286987727,7.70155792,143.24,143.2,2.41095141]
[1763286987728,9.39250933,143.24,143.2,2.41095141]
[1763286987947,9.39250933,143.24,143.2,0.72]
[1763286987948,2.41095141,143.23,143.2,0.72]
[1763286988333,2.41095141,143.23,143.19,1.69095141]
[1763286988532,8.67250933,143.24,143.19,6.98356606]
[1763286988840,7.70155792,143.24,143.2,2.41095141]
[1763286989139,9.39250933,143.24,143.2,2.41095141]
[1763286990230,0.72,143.23,143.2,2.41095141]
[1763286991452,0.72,143.23,143.19,1.69095141]
[1763286991645,0.72,143.23,143.19,2.41095141]
[1763286992041,7.70178196,143.23,143.2,0.72]
[1763286992751,7.70178196,143.23,143.19,1.69095141]
[1763286992956,7.70178196,143.23,143.19,7.25045812]
[1763286993839,7.70178196,143.23,143.2,0.72]
[1763286994456,14.23224008,143.23,143.19,6.53045812]
[1763286994664,0.72,143.22,143.19,7.25045812]
[1763286994840,14.23224008,143.23,143.19,7.25045812]
[1763286995737,0.72,143.22,143.19,7.25045812]
[1763286996459,7.70178196,143.23,143.19,7.25045812]
[1763286997046,7.70258089,143.22,143.19,7.25045812]
[1763286997257,7.70258089,143.22,143.19,6.53045812]
[1763286997446,0.72,143.21,143.19,6.53045812]
[1763286997657,0.72,143.21,143.17,0.72]
[1763286997855,7.25045812,143.21,143.17,0.72]
[1763286998253,7.25045812,143.21,143.17,7.25045812]
[1763286998459,6.53045812,143.21,143.17,7.25045812]
[1763286998650,0.72,143.2,143.17,7.25045812]
[1763286998962,7.70327134,143.2,143.17,7.25045812]
[1763286999164,6.98327134,143.2,143.18,0.72]
[1763286999376,6.98327134,143.2,143.17,7.25045812]
[1763286999663,7.70327134,143.2,143.17,7.25045812]
[1763287000777,0.72,143.22,143.18,7.25045812]
[1763287001162,0.72,143.22,143.18,6.53045812]
[1763287001356,0.72,143.22,143.19,0.72]
[1763287001673,6.53045812,143.23,143.19,7.25045812]
[1763287001852,7.25045812,143.23,143.19,7.25045812]
[1763287002052,6.98226504,143.22,143.19,7.25045812]
[1763287002270,7.70226504,143.22,143.19,7.25045812]
[1763287003274,110.73045812,143.24,143.2,7.25045812]
[1763287003578,118.43183942,143.24,143.2,7.25045812]
[1763287003877,116.93183942,143.24,143.2,7.23045812]
[1763287004250,110.4013813,143.24,143.2,7.23045812]
[1763287004450,109.6813813,143.24,143.2,7.23045812]
[1763287004680,110.4013813,143.24,143.2,7.23045812]
[1763287004881,0.72,143.23,143.2,7.23045812]
[1763287005459,7.7018925,143.23,143.2,7.23045812]
[1763287006580,7.7018925,143.23,143.2,0.7]
[1763287006887,14.23235062,143.23,143.2,0.7]
[1763287007079,12.73235062,143.23,143.2,0.7]
[1763287007381,6.9827526,143.21,143.19,0.7]
[1763287007558,6.9827526,143.21,143.18,7.23045812]
[1763287007757,0.72,143.2,143.17,7.23045812]
[1763287007959,7.25045812,143.2,143.16,6.53045812]
[1763287008377,6.53045812,143.2,143.11,17.46859452]
[1763287008575,7.25045812,143.19,143.15,6.53045812]
[1763287009087,7.25045812,143.19,143.16,0.7]
[1763287009253,7.25045812,143.19,143.08,30.59046033]
[1763287009254,6.53045812,143.19,143.11,6.98753861]
[1763287009579,7.70433846,143.18,143.14,7.23045812]
[1763287010080,14.23479658,143.18,143.14,7.23045812]
[1763287010381,14.23479658,143.18,143.15,0.7]
[1763287010769,0.72,143.17,143.13,6.53045812]
[1763287011370,0.72,143.17,143.14,0.7]
[1763287011782,6.53045812,143.18,143.14,7.23045812]
[1763287012087,6.53045812,143.19,143.15,6.53045812]
[1763287012281,7.25045812,143.19,143.15,7.23045812]
[1763287012992,10.34313028,143.19,143.16,0.7]
[1763287013359,10.34313028,143.19,143.15,2.63896404]
[1763287013569,10.34313028,143.19,143.15,3.33896404]
[1763287013858,10.34313028,143.19,143.16,0.7]
[1763287014881,7.70416624,143.19,143.16,0.7]
[1763287015669,7.70416624,143.19,143.16,3.33896404]
[1763287015988,7.70416624,143.19,143.16,0.7]
[1763287016673,10.34313028,143.19,143.16,0.7]
[1763287017071,10.34313028,143.19,143.15,2.63896404]
[1763287017268,10.34313028,143.19,143.15,3.33896404]
[1763287018067,27.80245006,143.19,143.15,0.7]
[1763287018468,27.08245006,143.19,143.15,0.7]
[1763287018789,27.80245006,143.19,143.15,0.7]
[1763287018979,0.72,143.18,143.15,2.63896404]
[1763287019162,0.72,143.18,143.13,0.7]
[1763287019163,3.35896404,143.18,143.14,2.63896404]
[1763287019358,6.98470349,143.17,143.14,2.63896404]
[1763287019572,6.98470349,143.17,143.14,3.33896404]
[1763287019573,7.70470349,143.17,143.14,3.33896404]
[1763287019778,7.70470349,143.17,143.14,0.7]
[1763287019987,7.70470349,143.17,143.14,3.33896404]
[1763287020286,6.98470349,143.17,143.15,2.63896404]
[1763287020488,0.72,143.2,143.16,2.63896404]
[1763287020796,10.34234266,143.2,143.16,2.63896404]
[1763287021087,2.63896404,143.19,143.13,7.68663912]
[1763287021290,6.98456124,143.18,143.15,2.63896404]
[1763287021792,6.98456124,143.18,143.15,3.33896404]
[1763287022489,7.70456124,143.18,143.15,3.33896404]
[1763287022784,7.70456124,143.18,143.15,2.63896404]
[1763287022984,7.70456124,143.18,143.15,3.33896404]
[1763287023394,7.70456124,143.18,143.15,0.7]
[1763287024897,7.70456124,143.18,143.14,3.33896404]
[1763287025200,7.70456124,143.18,143.14,0.7]
[1763287025370,7.70456124,143.18,143.15,2.63896404]
[1763287025900,7.70456124,143.18,143.15,3.33896404]
[1763287028880,0.72,143.17,143.12,0.7]
[1763287029081,3.35896404,143.17,143.13,2.63896404]
[1763287029299,0.72,143.17,143.13,2.63896404]
[1763287029482,0.72,143.16,143.13,2.63896404]
[1763287029684,6.98456124,143.18,143.11,22.6512]
[1763287029685,27.80406446,143.18,143.14,3.33896404]
[1763287029899,0.72,143.17,143.13,2.63896404]
[1763287030209,0.72,143.17,143.13,3.33896404]
[1763287030390,6.98519139,143.16,143.13,0.7]
[1763287030585,6.98519139,143.16,143.13,3.33896404]
[1763287030908,3.35896404,143.15,143.11,2.63896404]
[1763287031404,3.35896404,143.15,143.11,3.33896404]
[1763287031601,3.35896404,143.15,143.12,0.7]
[1763287031780,3.35896404,143.15,143.11,2.63896404]
[1763287031983,3.35896404,143.15,143.11,3.33896404]
[1763287032177,6.98616738,143.14,143.11,3.33896404]
[1763287032407,7.70616738,143.14,143.11,3.33896404]
[1763287034079,7.65499794,143.17,143.13,2.63896404]
[1763287034305,0.67,143.16,143.13,3.33896404]
[1763287035015,18.12836773,143.2,143.15,2.63896404]
[1763287035185,0.67,143.19,143.15,2.63896404]
[1763287035388,0.67,143.19,143.15,3.33896404]
[1763287036397,7.65372791,143.19,143.15,3.33896404]
[1763287036792,103.37,143.21,143.16,3.33896404]
[1763287036990,102.7,143.21,143.19,2.63896404]
[1763287037184,9.78882769,143.24,143.2,2.63896404]
[1763287037185,0.67,143.23,143.2,2.63896404]
[1763287037603,116.91231283,143.25,143.21,2.63896404]
[1763287037805,0.67,143.24,143.21,2.63896404]
[1763287038007,3.30896404,143.24,143.2,3.33896404]
[1763287038180,3.30896404,143.24,143.2,2.63896404]
[1763287038382,7.65177756,143.23,143.19,2.63896404]
[1763287038601,3.30896404,143.23,143.19,2.63896404]
[1763287038802,3.30896404,143.23,143.19,3.33896404]
[1763287039201,3.30896404,143.22,143.15,22.6512]
[1763287039409,3.30896404,143.22,143.17,2.63896404]
[1763287039611,3.30896404,143.21,143.16,0.7]
[1763287039809,2.63896404,143.2,143.15,2.63896404]
[1763287040119,2.63896404,143.19,143.14,3.33896404]
[1763287040297,0.67,143.18,143.14,3.33896404]
[1763287040618,7.65457438,143.18,143.14,3.33896404]
[1763287040826,10.29353842,143.18,143.13,2.63896404]
[1763287041121,0.67,143.17,143.13,3.33896404]
[1763287041295,0.67,143.17,143.14,0.7]
[1763287041499,9.62353842,143.18,143.14,3.33896404]
[1763287041818,0.67,143.17,143.14,3.33896404]
[1763287042316,6.98457438,143.18,143.15,2.63896404]
[1763287042499,7.65457438,143.18,143.15,2.63896404]
[1763287042700,7.65457438,143.18,143.15,3.33896404]
[1763287043109,7.65457438,143.18,143.15,2.63896404]
[1763287043410,7.65457438,143.18,143.15,3.33896404]
[1763287043714,6.98457438,143.18,143.15,3.33896404]
[1763287043925,6.98457438,143.18,143.15,2.63896404]
[1763287044219,7.65457438,143.18,143.15,2.63896404]
[1763287045193,7.65457438,143.18,143.15,3.33896404]
[1763287045515,6.98404293,143.19,143.17,2.63896404]
[1763287045720,6.98331354,143.2,143.17,3.33896404]
[1763287045924,7.65331354,143.2,143.17,3.33896404]
[1763287046097,7.65331354,143.2,143.17,0.7]
[1763287046603,0.67,143.19,143.15,2.63896404]
[1763287046804,0.67,143.19,143.15,3.33896404]
[1763287047335,6.98421567,143.18,143.15,3.33896404]
[1763287047909,7.65421567,143.18,143.15,3.33896404]
[1763287048109,7.65421567,143.18,143.14,2.63896404]
[1763287048317,7.65421567,143.18,143.14,3.33896404]
[1763287049025,0.67,143.17,143.13,2.63896404]
[1763287049203,6.98519139,143.16,143.13,3.33896404]
[1763287050538,6.98482537,143.17,143.13,3.33896404]
[1763287050745,0.67,143.16,143.13,3.33896404]
[1763287051913,6.98482537,143.17,143.13,3.33896404]
[1763287052240,7.65482537,143.17,143.13,3.33896404]
[1763287052811,7.65482537,143.17,143.13,0.7]
[1763287053010,7.65482537,143.17,143.14,1.68901888]
[1763287053325,7.65482537,143.17,143.14,2.38901888]
[1763287055134,7.65482537,143.17,143.15,1.68901888]
[1763287055333,27.24488176,143.22,143.16,1.68901888]
[1763287055525,27.24488176,143.22,143.17,1.68901888]
[1763287055526,0.67,143.21,143.17,1.68901888]
[1763287056134,0.67,143.21,143.17,2.38901888]
[1763287056338,7.6527526,143.21,143.17,2.38901888]
[1763287056639,7.6527526,143.21,143.18,0.7]
[1763287057038,6.9827526,143.21,143.17,1.68901888]
[1763287057338,6.98372791,143.19,143.17,1.68901888]
[1763287057536,6.98372791,143.19,143.17,2.38901888]
[1763287058116,7.65325462,143.2,143.17,2.38901888]
[1763287058938,0.67,143.2,143.17,2.38901888]
[1763287059329,0.67,143.2,143.17,0.7]
[1763287059530,0.67,143.2,143.17,2.38901888]
[1763287060141,0.67,143.2,143.17,9.373669]
[1763287060333,2.35901888,143.21,143.17,2.38901888]
[1763287060537,0.67,143.2,143.17,2.38901888]
[1763287061349,7.65341422,143.2,143.17,2.38901888]
[1763287063255,1.68901888,143.18,143.13,2.38901888]
[1763287063436,9.35372237,143.17,143.14,0.69]
[1763287063834,7.66470349,143.17,143.14,0.69]
[1763287064653,0.68,143.17,143.14,2.37901888]
[1763287065235,6.98392176,143.19,143.16,1.68901888]